fUSD/lending_fUSD_20240706
["ID","MTS","AMOUNT","RATE_DAILY","PERIOD"]
[331344543,1720263032713,-627.05345508,0.00012314,2]
[331344544,1720263032723,-200.0,0.00012818,2]
[331344545,1720263032732,-11954.03342411,0.00012869,2]
[331344546,1720263032742,-694.61455,0.00013,2]
[331344547,1720263032751,-155.10345692,0.00013128,2]
[331344548,1720263032761,-172.1320514,0.00013128,2]
[331344549,1720263032771,-210.47287593,0.00013128,2]
[331344550,1720263032782,-626.74096445,0.00013128,2]
[331344551,1720263032793,-300.97726413,0.00013128,2]
[331344552,1720263032803,-155.0,0.00013128,2]
[331344553,1720263032816,-155.0,0.00013128,2]
[331344554,1720263032826,-155.53694078,0.00013128,2]
[331344555,1720263032836,-159.81512945,0.00013128,2]
[331344556,1720263032847,-517.99231922,0.00013128,2]
[331344557,1720263032857,-155.43357052,0.00013128,2]
[331344558,1720263032866,-218.10166328,0.00013128,2]
[331344559,1720263032877,-202.60743372,0.00013128,2]
[331344560,1720263032890,-211.56648654,0.00013128,2]
[331344561,1720263032900,-177.513979,0.00013128,2]
[331344562,1720263032910,-298.39636076,0.00013128,2]
[331344564,1720263032920,-155.0,0.00013128,2]
[331344566,1720263032930,-166.15154969,0.00013128,2]
[331344568,1720263032940,-155.0,0.00013128,2]
[331344570,1720263032949,-217.78950584,0.00013128,2]
[331344572,1720263032959,-497.79,0.00013209,2]
[331344574,1720263032968,-499.99,0.00013237,2]
[331344576,1720263032980,-178.67,0.00013344,2]
[331344578,1720263032989,-1000.0,0.00013374,2]
[331344580,1720263033002,-1439.6897,0.00013374,2]
[331344582,1720263033011,-169.29571728,0.00013416,2]
[331344584,1720263033021,-155.28352034,0.00013472,2]
[331344586,1720263033030,-253.66525961,0.00013472,2]
[331344588,1720263033039,-302.3204216,0.00013472,2]
[331344590,1720263033050,-155.0,0.00013472,2]
[331344592,1720263033060,-155.66736473,0.00013472,2]
[331344595,1720263033070,-155.49124006,0.00013472,2]
[331344596,1720263033079,-291.59017925,0.00013472,2]
[331344599,1720263033090,-846.52314848,0.00013472,2]
[331344600,1720263033099,-155.71370528,0.00013472,2]
[331344603,1720263033109,-4551.1404505,0.00013473,2]
[331344604,1720263033119,-9968.8805,0.00013474,2]
[331344607,1720263033129,-85334.34165446,0.00013474,2]
[331344609,1720263033141,-1440.43885638,0.00013474,2]
[331344611,1720263033154,-56895.71489424,0.00013474,2]
[331344613,1720263033165,-931.19495996,0.00013474,2]
[331344635,1720263033705,698.48495123,0.00011199,2]
[331344638,1720263038479,-438.71170098,0.00012302,2]
[331344640,1720263038490,-196.45941365,0.00012314,2]
[331344642,1720263038500,-155.17597654,0.00013472,2]
[331344644,1720263038510,-100398.30963496,0.00013474,2]
[331344646,1720263038520,-14578.441442,0.00013474,2]
[331344657,1720263038609,-4615.7,0.00013474,2]
[331344766,1720263041074,-573.99746747,0.00013474,2]
[331344816,1720263047526,-23180.33135121,0.00013474,2]
[331344817,1720263047539,-10248.03116606,0.00013474,2]
[331344818,1720263047552,-12896.04827835,0.00013474,2]
[331344827,1720263205022,9727.7664199,0.00011199,2]
[331344828,1720263248030,3959.0,0.00026,120]
[331344829,1720263258268,960.05621481,0.00011199,2]
[331344830,1720263262474,297.39737969,0.00011199,2]
[331344831,1720263278809,155.23286699,0.00011199,2]
[331344832,1720263352861,483.68385979,0.00011199,2]
[331344833,1720263369081,661.16435023,0.00011199,2]
[331344834,1720263393643,19350.85969045,0.00011199,2]
[331344835,1720263446920,206.87707406,0.00011199,2]
[331344836,1720263454801,155.37220971,0.00011199,2]
[331344837,1720263460638,155.0,0.00011199,2]
[331344838,1720263479989,155.97353947,0.00011199,2]
[331344839,1720263492709,155.30395772,0.00011199,2]
[331344840,1720263498596,155.57739371,0.00011199,2]
[331344842,1720263507533,156.19862631,0.00011199,2]
[331344843,1720263526091,434.59268335,0.00011199,2]
[331344845,1720263538788,527.17227954,0.00011199,2]
[331344846,1720263562063,487.81,0.00010866,2]
[331344848,1720263673930,155.0,0.00011199,2]
[331344849,1720263742066,483.44679723,0.00011199,2]
[331344850,1720263820033,308.38329382,0.00011199,2]
[331344851,1720263847283,379.18002137,0.00011199,2]
[331344852,1720263850040,173.93176922,0.00011199,2]
[331344853,1720263875167,4461.53872289,0.00011199,2]
[331344854,1720263937665,155.0,0.00011199,2]
[331344856,1720263979730,6852.99177288,0.00011199,2]
[331344857,1720263998656,3033.51591351,0.00011199,2]
[331344892,1720264037240,1615.40415592,0.00025,120]
[331344917,1720264111829,2375.99449298,0.00011199,2]
[331344918,1720264123939,463.41,0.00010663,2]
[331344973,1720264154627,202.33299107,0.00011199,2]
[331344974,1720264162127,157.51015745,0.00011199,2]
[331344980,1720264189055,155.78867266,0.00011199,2]
[331344990,1720264232689,-308.0063622,0.00012302,2]
[331344991,1720264232698,-379.18002137,0.00012302,2]
[331344992,1720264232709,-174.42560748,0.00012302,2]
[331344993,1720264232720,-1000.0,0.0001254,2]
[331344994,1720264232731,-446.12,0.0001257,2]
[331344995,1720264232740,-1847.41,0.00012625,2]
[331344996,1720264232751,-250.0,0.00012639,2]
[331344997,1720264232764,-744.95960441,0.00012644,2]
[331344998,1720264232777,-381.97039559,0.00012644,2]
[331344999,1720264232786,-250.0,0.00012685,2]
[331345000,1720264232797,-41.46262441,0.00012708,2]
[331345001,1720264232810,-667.36237526,0.00012708,2]
[331345002,1720264232821,-13.21500033,0.00012708,2]
[331345003,1720264232832,-500.0,0.00012798,2]
[331345004,1720264232842,-168.64,0.00012891,2]
[331345005,1720264232853,-463.41,0.00012927,2]
[331345006,1720264232865,-1068.44,0.0001308,2]
[331345007,1720264232874,-267.85,0.00013128,2]
[331345008,1720264232885,-499.99,0.00013128,2]
[331345009,1720264232894,-364.41692002,0.00013128,2]
[331345011,1720264232904,-249.4700045,0.00013128,2]
[331345013,1720264232914,-405.16187582,0.00013128,2]
[331345015,1720264232923,-354.94,0.00013151,2]
[331345017,1720264232932,-240.42,0.00013172,2]
[331345019,1720264232942,-329.8,0.000132,2]
[331345021,1720264232952,-314.1557,0.00013374,2]
[331345023,1720264232961,-359.38193,0.00013474,2]
[331345024,1720264232972,-359.38193,0.00013474,2]
[331345025,1720264232983,-359.38193,0.00013474,2]
[331345026,1720264232992,-359.38193,0.00013474,2]
[331345027,1720264233004,-359.38193,0.00013474,2]
[331345028,1720264233013,-359.38193,0.00013474,2]
[331345029,1720264233023,-685.14451651,0.00013516,2]
[331345030,1720264233032,-1538.94207011,0.00013516,2]
[331345031,1720264233041,-1170.65943122,0.00013516,2]
[331345032,1720264233050,-202.33299107,0.00013574,2]
[331345033,1720264233060,-289.18696229,0.00013574,2]
[331345034,1720264233070,-6877.94906638,0.0001358,2]
[331345035,1720264233080,-768.07,0.00013699,2]
[331345036,1720264233089,-200.0,0.00013699,2]
[331345037,1720264233098,-645.95,0.00013699,2]
[331345038,1720264233109,-294.078,0.0001372,2]
[331345039,1720264233118,-3249.0,0.0001372,2]
[331345040,1720264233129,-2036.278,0.0001372,2]
[331345041,1720264233140,-559.33,0.0001372,2]
[331345042,1720264233151,-1070.0,0.0001372,2]
[331345043,1720264233160,-355.408,0.0001372,2]
[331345044,1720264233170,-5193.013,0.0001372,2]
[331345045,1720264233181,-38250.0,0.0001372,2]
[331345046,1720264233191,-5812.0,0.0001372,2]
[331345047,1720264233203,-761.08055498,0.0001372,2]
[331345048,1720264233221,-902.91944502,0.0001372,2]
[331345049,1720264233232,-1199.0,0.0001372,2]
[331345050,1720264233242,-178.99948918,0.00013736,2]
[331345051,1720264233255,-263.64360903,0.00013849,2]
[331345052,1720264233265,-500.0,0.00013888,2]
[331345053,1720264233274,-156.59853849,0.0001389,2]
[331345054,1720264233285,-3003.48195228,0.0001389,2]
[331345055,1720264233296,-471.75317277,0.0001389,2]
[331345056,1720264233308,-508.47198714,0.0001389,2]
[331345057,1720264237710,-155.18510572,0.00012314,2]
[331345058,1720264237720,-718.05959923,0.00013759,2]
[331345059,1720264237729,-7342.97109378,0.0001389,2]
[331345060,1720264238166,-17.59889403,0.0001389,2]
[331345061,1720264238176,-3754.63053719,0.0001389,2]
[331345062,1720264238189,-8419.14754862,0.0001389,2]
[331345157,1720264240477,-20992.46196507,0.0001389,2]
[331345180,1720264240708,-66833.75994912,0.0001389,2]
[331345182,1720264240718,-220.45,0.0001389,2]
[331345185,1720264240728,-156.59853846,0.00013893,2]
[331345186,1720264240738,-156.59853846,0.00013895,2]
[331345188,1720264240747,-156.59853846,0.00013898,2]
[331345190,1720264240757,-156.59853846,0.000139,2]
[331345192,1720264240770,-154.62831452,0.000139,2]
[331345194,1720264240780,-4741.57715506,0.000139,2]
[331345197,1720264240795,-2758.42284494,0.000139,2]
[331345199,1720264240806,-2779.95864271,0.000139,2]
[331345201,1720264240816,-189.32465771,0.000139,2]
[331345203,1720264240827,-2573.14826034,0.000139,2]
[331345205,1720264240836,-634.15758584,0.000139,2]
[331345207,1720264240845,-760.61250786,0.00013989,2]
[331345280,1720264241552,-13054.90106364,0.00013989,2]
[331345283,1720264241565,-1210.0972992,0.00013989,2]
[331345285,1720264241578,-4607.2780128,0.00013989,2]
[331345287,1720264241590,-12006.153333,0.0001399,2]
[331345289,1720264241603,-10196.7930944,0.0001399,2]
[331345291,1720264241613,-8387.4328559,0.0001399,2]
[331345294,1720264241623,-1050.8731156,0.0001399,2]
[331345296,1720264241634,-891.648932,0.0001399,2]
[331345298,1720264241646,-732.4247483,0.0001399,2]
[331345300,1720264241657,-3990.3588281,0.0001399,2]
[331345302,1720264241669,-3373.4396434,0.0001399,2]
[331345305,1720264241681,-2756.5204587,0.0001399,2]
[331345307,1720264241693,-84996.7380566,0.0001399,2]
[331345309,1720264241705,-80669.59141803,0.00014,2]
[331345312,1720264241722,-2264.48904993,0.00014,2]
[331345384,1720264242424,-1509.93193484,0.00014,2]
[331345746,1720264246246,-639712.4669026,0.00014,2]
[331345761,1720264246734,-334465.89557193,0.00014,2]
[331345762,1720264246746,-3000.0,0.00014,2]
[331345763,1720264246758,-353.44412154,0.00014,2]
[331345764,1720264247466,-13988.34552915,0.00014,2]
[331345765,1720264247479,-13013.63410615,0.00014,2]
[331345766,1720264247492,-13946.68130343,0.00014,2]
[331345767,1720264247505,-2583.931891,0.00014,2]
[331345768,1720264247517,-4915.68527795,0.00014,2]
[331345773,1720264509002,480.56874208,0.00011199,2]
[331345774,1720264509058,1720.98278775,0.00011199,2]
[331345775,1720264514914,1386.68676949,0.00011199,2]
[331345776,1720264639605,527.17227954,0.00011199,2]
[331345777,1720264654618,193.06149946,0.00011199,2]
[331345778,1720264657071,282.65047212,0.00011199,2]
[331345779,1720264657992,492.24879878,0.00011199,2]
[331345780,1720264660566,326.82554292,0.00011199,2]
[331345781,1720264665544,310.828487,0.00025,60]
[331345782,1720264666553,175.3586539,0.00011199,2]
[331345783,1720264667883,263.64360903,0.00011199,2]
[331345784,1720264674328,199.77368546,0.00011199,2]
[331345785,1720264675597,269.66585557,0.00011199,2]
[331345786,1720264684685,216.93020437,0.00011199,2]
[331345787,1720264691238,356.34563911,0.00011199,2]
[331345788,1720264693812,328.85804811,0.00011199,2]
[331345789,1720264694328,155.0,0.00011199,2]
[331345790,1720264699655,339.22582423,0.00011199,2]
[331345791,1720264701770,365.26443049,0.00011199,2]
[331345792,1720264702106,378.23425147,0.00011199,2]
[331345793,1720264712107,163.84092695,0.00011199,2]
[331345794,1720264718824,158.47133143,0.00011199,2]
[331345795,1720264724006,155.0,0.00011199,2]
[331345796,1720264724862,205.41084335,0.00011199,2]
[331345797,1720264725159,269.0153369,0.00011199,2]
[331345798,1720264738137,155.0,0.00011199,2]
[331345799,1720264761002,155.0,0.00011199,2]
[331345800,1720264847401,566.82,0.00010883,2]
[331345801,1720264882594,438.48996722,0.00011199,2]
[331345802,1720264913080,753.59338141,0.00011199,2]
[331345803,1720265040379,310.63053119,0.00011199,2]
[331345804,1720265047673,625.45487533,0.00011199,2]
[331345805,1720265073466,242.49333518,0.00011199,2]
[331345806,1720265093256,492.24879878,0.00011199,2]
[331345807,1720265131906,264.05244325,0.00011199,2]
[331345812,1720265156384,159.06957682,0.00011199,2]
[331345813,1720265166661,267.28083621,0.00011199,2]
[331345814,1720265170629,305.22926273,0.00011199,2]
[331345815,1720265172762,356.34563911,0.00011199,2]
[331345816,1720265177410,155.38062721,0.00011199,2]
[331345817,1720265182433,174.01178014,0.00011199,2]
[331345818,1720265185942,155.0,0.00011199,2]
[331345819,1720265203235,356.34563911,0.00011199,2]
[331345820,1720265213850,730.30639327,0.00011199,2]
[331345821,1720265228039,155.0,0.00011199,2]
[331345822,1720265228403,171.04080637,0.00011199,2]
[331345827,1720265285223,269.60110969,0.00011199,2]
[331345863,1720265433133,-295.28087625,0.00012302,2]
[331345864,1720265433144,-205.41084335,0.00012314,2]
[331345865,1720265433153,-150.0,0.000126,2]
[331345866,1720265433165,-10.51449853,0.00012634,2]
[331345867,1720265433179,-239.48550147,0.00012634,2]
[331345868,1720265433188,-163.28,0.00012681,2]
[331345869,1720265433201,-250.0,0.00012684,2]
[331345870,1720265433210,-289.59,0.0001273,2]
[331345871,1720265433220,-800.0,0.00012743,2]
[331345872,1720265433230,-797.58,0.00012788,2]
[331345873,1720265433240,-152.3647633,0.00012888,2]
[331345874,1720265433250,-200.0,0.00013091,2]
[331345875,1720265433259,-196.29523523,0.00013109,2]
[331345879,1720265433350,-103.70476477,0.00013109,2]
[331345881,1720265433360,-16409.45,0.0001311,2]
[331345883,1720265433370,-492.36298979,0.00013128,2]
[331345885,1720265433379,-155.0,0.00013128,2]
[331345887,1720265433388,-566.82,0.00013147,2]
[331345889,1720265433398,-999.99,0.00013163,2]
[331345891,1720265433408,-400.0,0.00013232,2]
[331345893,1720265433418,-168.23,0.00013255,2]
[331345895,1720265433427,-245.54,0.00013373,2]
[331345897,1720265433437,-356.03412447,0.00013472,2]
[331345899,1720265433447,-75020.71414804,0.00013574,2]
[331345901,1720265433458,-155.0,0.00013574,2]
[331345903,1720265433467,-157.97104401,0.00013574,2]
[331345905,1720265433477,-313.63016676,0.00013574,2]
[331345907,1720265433487,-826.08,0.00013699,2]
[331345909,1720265433497,-200.0,0.00013699,2]
[331345911,1720265433507,-635.63769798,0.000137,5]
[331345913,1720265433517,-948.6865,0.0001379,2]
[331345915,1720265433527,-51184.5667,0.000138,2]
[331345917,1720265433536,-1000.0,0.000138,14]
[331345919,1720265433546,-2842.70755,0.0001386,2]
[331345921,1720265433555,-1562.23,0.00013879,2]
[331345923,1720265433567,-100000.0,0.00013889,2]
[331345925,1720265433576,-2500.0,0.0001389,2]
[331345927,1720265433589,-316.78,0.0001389,3]
[331345929,1720265433599,-173.24,0.00013895,2]
[331345931,1720265433608,-1000.0,0.000139,14]
[331345933,1720265433617,-7500.0,0.000139,2]
[331345935,1720265433626,-1562.23,0.0001398,2]
[331345937,1720265433638,-3308.3797249,0.0001399,2]
[331345939,1720265433647,-68009.4260075,0.0001399,2]
[331345941,1720265433656,-982.3464742,0.0001399,2]
[331345943,1720265433666,-1562.23,0.0001399,2]
[331345945,1720265433676,-1562.23,0.0001399,2]
[331345947,1720265433685,-166.49751087,0.0001399,2]
[331345949,1720265433694,-1562.23,0.0001399,2]
[331345951,1720265433704,-202.72559596,0.00013999,2]
[331345953,1720265433714,-669.0,0.00014,2]
[331345955,1720265433723,-50464.12632136,0.00014,2]
[331345957,1720265433735,-13111.38324138,0.00014,2]
[331345959,1720265433746,-4235.04792031,0.00014,2]
[331345962,1720265433757,-424.54627044,0.00014,2]
[331345964,1720265433768,-3481.8,0.00014,2]
[331345966,1720265433779,-329.14260328,0.00014,2]
[331345968,1720265433791,-1656.95313867,0.00014,2]
[331345970,1720265433802,-23145.5866258,0.00014,2]
[331345973,1720265433814,-2589.02150942,0.00014,2]
[331346007,1720265439444,-155.0,0.00013543,2]
[331346010,1720265439456,-271.91495069,0.00013999,2]
[331346011,1720265439469,-1068.89864221,0.00013999,2]
[331346012,1720265439481,-45.87317659,0.00013999,2]
[331346013,1720265439492,-1466.88474473,0.00014,2]
[331346014,1720265439504,-2104.93626584,0.00014,2]
[331346015,1720265439517,-1202.13079957,0.00014,2]
[331346018,1720265441959,-3249.95340702,0.00014,2]
[331346019,1720265441971,-843.4,0.00014,2]
[331346026,1720265445447,-275.22959704,0.00014,2]
[331346029,1720265445459,-151250.25820763,0.00014,2]
[331346032,1720265445473,-2875.82477649,0.00014,2]
[331346036,1720265445484,-417.81286233,0.00014,2]
[331346041,1720265445496,-623.07,0.00014,2]
[331346045,1720265445508,-3512.67903515,0.00014,2]
[331346050,1720265445519,-2310.06028183,0.00014,2]
[331346054,1720265445530,-969.65529697,0.00014,2]
[331346057,1720265445542,-9080.37254984,0.00014,2]
[331346059,1720265445553,-8947.21879473,0.00014,2]
[331346062,1720265445565,-8943.78386462,0.00014,2]
[331346065,1720265445577,-9077.54866152,0.00014,2]
[331346067,1720265445592,-8943.84023489,0.00014,2]
[331346070,1720265445606,-749.62,0.00014,2]
[331346072,1720265445618,-3972.09929284,0.00014,2]
[331346075,1720265445633,-396.2306656,0.00014,2]
[331346210,1720265447095,-639712.4669026,0.00014,2]
[331346212,1720265447107,-12705.09598579,0.00014,2]
[331346214,1720265447118,-376.16154095,0.00014,2]
[331346217,1720265447130,-1693.22536639,0.00014,2]
[331346219,1720265447142,-464.70191336,0.00014,2]
[331346221,1720265447153,-659.99999999,0.00014,2]
[331346227,1720265448412,-695.724,0.00014,2]
[331346228,1720265448427,-113597.46966416,0.00014,2]
[331346229,1720265448440,-140417.74455762,0.00014,2]
[331346232,1720265547564,572.1,0.00011152,2]
[331346234,1720265746640,128.07743715,0.000112,2]
[331346235,1720265746691,173.13432741,0.000112,2]
[331346236,1720265928039,2093.87866846,0.00011199,2]
[331346237,1720265963207,1511.99050642,0.00011199,2]
[331346238,1720265963254,241.73388473,0.00011199,2]
[331346239,1720265963299,3722.51735043,0.00011199,2]
[331346240,1720265963330,3760.1714846,0.00011199,2]
[331346242,1720266183279,543.49,0.00010641,2]
[331346243,1720266257651,475.71197158,0.00011199,2]
[331346244,1720266282733,220.33200542,0.00011199,2]
[331346245,1720266299346,356.27565299,0.00011199,2]
[331346246,1720266302968,210.02763994,0.00011199,2]
[331346247,1720266310132,155.0,0.00011199,2]
[331346248,1720266314499,202.72559596,0.00011199,2]
[331346253,1720266346722,155.38720143,0.00011199,2]
[331346254,1720266355232,409.15851751,0.00011199,2]
[331346255,1720266363225,730.52886098,0.00011199,2]
[331346256,1720266372748,623.1312429,0.00011199,2]
[331346257,1720266374184,155.80404999,0.00011199,2]
[331346261,1720266391932,158.31418936,0.00011199,2]
[331346262,1720266392490,378.3670316,0.00011199,2]
[331346277,1720266442723,194.34767552,0.00011199,2]
[331346280,1720266529121,268.73174168,0.00011199,2]
[331346281,1720266539383,209.7,0.00016,30]
[331346283,1720266548478,226.02292839,0.00011199,2]
[331346321,1720266553703,3393.16408193,0.00011199,2]
[331346334,1720266616350,155.0,0.00011199,2]
[331346338,1720266631693,-1361.10663582,0.000118,2]
[331346339,1720266631702,-287.09760614,0.00012273,2]
[331346340,1720266631897,-1992.55257642,0.00012273,2]
[331346341,1720266631907,-320.0,0.00012348,2]
[331346342,1720266631918,-250.0,0.000124,2]
[331346343,1720266631928,-1108.44,0.00012406,2]
[331346344,1720266631938,-168.23,0.00012424,2]
[331346345,1720266631948,-1952.65,0.00012439,2]
[331346347,1720266631962,-1489.71,0.00012442,2]
[331346349,1720266631974,-500.0,0.00012463,2]
[331346351,1720266631992,-150.0,0.000126,2]
[331346352,1720266632005,-1000.0,0.00012603,2]
[331346354,1720266632015,-150.13,0.00012606,2]
[331346355,1720266632024,-497.33,0.00012606,2]
[331346356,1720266632034,-200.0,0.00012627,2]
[331346357,1720266632043,-300.0,0.00012674,2]
[331346358,1720266632053,-19174.68944101,0.00012675,2]
[331346359,1720266632065,-410.51055899,0.00012675,2]
[331346360,1720266632075,-199.86,0.00012687,2]
[331346361,1720266632087,-150.13,0.0001277,2]
[331346362,1720266632096,-1000.0,0.00012787,2]
[331346363,1720266632106,-168.23,0.00012788,2]
[331346364,1720266632115,-5008.33455872,0.00012788,2]
[331346365,1720266632128,-553.5812655,0.00012788,2]
[331346368,1720266632144,-2807.53512977,0.00012788,2]
[331346371,1720266632155,-1700.56872045,0.00012788,2]
[331346375,1720266632166,-1042.5,0.00012788,2]
[331346378,1720266632178,-706.11031433,0.00012788,2]
[331346439,1720266638348,-5795.57224293,0.00012788,2]
[331346440,1720266638361,-3176.7876559,0.00012788,2]
[331346547,1720266640556,-4586.1401124,0.00012788,2]
[331346548,1720266640566,-300.0,0.000129,4]
[331346549,1720266640576,-543.49,0.00012905,2]
[331346550,1720266640587,-150.13,0.00012935,2]
[331346551,1720266640597,-600.0,0.00013,4]
[331346552,1720266640607,-150.13,0.00013099,2]
[331346553,1720266640617,-900.0,0.000131,4]
[331346554,1720266640626,-177.51,0.00013132,2]
[331346555,1720266640635,-1200.0,0.000132,4]
[331346556,1720266640644,-150.13,0.00013263,2]
[331346557,1720266640654,-1500.0,0.000133,4]
[331346558,1720266640664,-1000.0,0.00013393,2]
[331346559,1720266640673,-300.0,0.000134,4]
[331346560,1720266640682,-704.89441622,0.00013499,2]
[331346561,1720266640692,-4077.91885619,0.00013499,2]
[331346562,1720266640701,-300.0,0.000135,4]
[331346563,1720266640711,-1386.68676949,0.00013516,2]
[331346564,1720266640721,-220.10192675,0.00013517,2]
[331346565,1720266640730,-760.34790253,0.00013543,2]
[331346566,1720266640739,-300.0,0.000136,4]
[331346567,1720266640750,-664.59,0.00013699,2]
[331346568,1720266640760,-500.0,0.00013699,2]
[331346569,1720266640769,-300.0,0.000137,5]
[331346570,1720266640779,-475.52856478,0.00013736,2]
[331346571,1720266640789,-24266.0547,0.00013789,2]
[331346572,1720266640799,-664.0,0.000138,5]
[331346573,1720266640808,-366.58364766,0.00013802,2]
[331346574,1720266640818,-223.05961,0.0001386,2]
[331346575,1720266640827,-500.0,0.00013888,2]
[331346576,1720266640837,-200.0,0.00013888,2]
[331346577,1720266640847,-492.36298979,0.00013889,2]
[331346578,1720266640857,-320.0,0.00013892,2]
[331346579,1720266640867,-155.0,0.00013899,2]
[331346580,1720266640876,-481.07800146,0.00013899,2]
[331346581,1720266640885,-12361.7933,0.000139,2]
[331346582,1720266640895,-1000.0,0.000139,2]
[331346583,1720266640904,-2500.0,0.000139,2]
[331346584,1720266640914,-1195.15888975,0.000139,2]
[331346585,1720266640924,-7006.1337,0.000139,2]
[331346586,1720266640934,-420.0,0.00013903,2]
[331346587,1720266640944,-381.88251463,0.00013919,2]
[331346588,1720266640953,-185.806211,0.00013973,2]
[331346589,1720266640965,-1077.4356961,0.00013989,2]
[331346590,1720266640977,-3486.8423472,0.00013989,2]
[331346591,1720266640988,-155.4058818,0.00013989,2]
[331346592,1720266640998,-60644.7369822,0.00013989,2]
[331346593,1720266641007,-910.6683074,0.0001399,2]
[331346594,1720266641016,-743.9009186,0.0001399,2]
[331346595,1720266641027,-577.1335298,0.0001399,2]
[331346596,1720266641036,-2867.9074658,0.0001399,2]
[331346597,1720266641046,-2248.9725843,0.0001399,2]
[331346598,1720266641056,-1630.0377029,0.0001399,2]
[331346599,1720266641066,-49879.941974,0.0001399,2]
[331346600,1720266641075,-39115.1469657,0.0001399,2]
[331346601,1720266641084,-28350.3519575,0.0001399,2]
[331346602,1720266641093,-154.11166157,0.00013999,2]
[331346603,1720266641102,-2069.90918128,0.00013999,2]
[331346604,1720266641146,-175.09081872,0.00013999,2]
[331346605,1720266641156,-522.77982189,0.00013999,5]
[331346606,1720266641168,-584.4,0.00013999,5]
[331346607,1720266641181,-74.96715142,0.00013999,5]
[331346608,1720266641191,-538.02284858,0.00014,2]
[331346609,1720266641203,-65.97715142,0.00014,2]
[331346610,1720266641212,-8958.90473968,0.00014,2]
[331346611,1720266641224,-579.7931161,0.00014,2]
[331346630,1720266641543,-2168.59643,0.00014,2]
[331346707,1720266646612,-97779.49666862,0.00014,2]
[331346708,1720266646624,-4144.21856246,0.00014,2]
[331346712,1720267043613,158.56160248,0.00011199,2]
[331346713,1720267065427,201.954167,0.00011199,2]
[331346714,1720267068634,155.1014532,0.00011199,2]
[331346715,1720267098010,941.31109449,0.00011199,2]
[331346716,1720267112216,212.34403039,0.00011199,2]
[331346717,1720267147882,13160.60003669,0.00011199,2]
[331346718,1720267184615,300.47826733,0.00011199,2]
[331346719,1720267194447,880.74846591,0.00011199,2]
[331346720,1720267209191,155.0,0.00011199,2]
[331346721,1720267220245,155.0,0.00011199,2]
[331346722,1720267225691,300.47826733,0.00011199,2]
[331346723,1720267339996,2852.24939902,0.00011199,2]
[331346724,1720267380202,-489.14,0.0001182,2]
[331346725,1720267396173,155.0,0.00011199,2]
[331346726,1720267407709,-205.46029227,0.00012273,2]
[331346727,1720267407738,-530.49341065,0.00012302,2]
[331346728,1720267407760,-156.29273338,0.00012314,2]
[331346729,1720267428222,489.14,0.00011349,2]
[331346730,1720267486230,-2744.70528822,0.00013115,2]
[331346731,1720267486255,-1221.22,0.00013215,2]
[331346732,1720267486282,-800.0,0.00013249,2]
[331346733,1720267486306,-194.15,0.00013388,2]
[331346734,1720267486329,-4044.43001685,0.00013442,2]
[331346735,1720267486353,-155.58118309,0.00013443,2]
[331346736,1720267486378,-163.28,0.00013469,2]
[331346737,1720267486400,-358.56718894,0.00013474,2]
[331346738,1720267486422,-651.225661,0.00013516,2]
[331346739,1720267486446,-250.0,0.00013574,2]
[331346740,1720267486469,-489.14,0.00013613,2]
[331346741,1720267486492,-332.29,0.00013699,2]
[331346742,1720267486515,-300.0,0.00013719,2]
[331346743,1720267486540,-300.0,0.00013719,2]
[331346744,1720267486562,-5812.0,0.0001372,2]
[331346745,1720267486584,-531.848,0.0001372,2]
[331346746,1720267486608,-14626.0362256,0.0001372,2]
[331346755,1720267723755,-11485.0,0.000155,5]
[331346777,1720267832288,-449.99559938,0.00012314,2]
[331346778,1720267832301,-155.58118308,0.0001362,2]